[Event "Titled Tuesday Blitz May 2 Early 2023"]
[White "Guzman Moneo, Alberto"]
[Black "Aslanov, Umid"]
[WhiteFideId "2209616"]
[BlackFideId "13412620"]
[WhiteElo "2157"]
[BlackElo "2013"]
[Result "0-1"]
[Round "02"]
[TimeControl "180+2"]
[Date "2023.05.02"]
[WhiteClock "0:00:06"]
[BlackClock "0:00:36"]

1. Nf3 {[%clk 0:02:57]}  d5 {[%clk 0:03:00]} 2. g3 {[%clk 0:02:56]}  c6 {[%clk 0:03:00]} 3. Bg2 {[%clk 0:02:57]}  Bg4 {[%clk 0:03:01]} 4. c4 {[%clk 0:02:56]}  e6 {[%clk 0:02:59]} 5. Qb3 {[%clk 0:02:52]}  Qb6 {[%clk 0:02:52]} 6. d3 {[%clk 0:02:50]}  Nd7 {[%clk 0:02:52]} 7. Be3 {[%clk 0:02:48]}  Bc5 {[%clk 0:02:50]} 8. Qxb6 {[%clk 0:02:43]}  axb6 {[%clk 0:02:50]} 9. Bxc5 {[%clk 0:02:40]}  Nxc5 {[%clk 0:02:51]} 10. Nbd2 {[%clk 0:02:39]}  Ne7 {[%clk 0:02:47]} 11. O-O {[%clk 0:02:31]}  O-O {[%clk 0:02:40]} 12. b4 {[%clk 0:02:28]}  Nd7 {[%clk 0:02:36]} 13. a4 {[%clk 0:02:12]}  Ra7 {[%clk 0:02:30]} 14. Ra3 {[%clk 0:02:09]}  Rfa8 {[%clk 0:02:29]} 15. Rfa1 {[%clk 0:02:09]}  b5 {[%clk 0:02:25]} 16. cxb5 {[%clk 0:02:07]}  cxb5 {[%clk 0:02:25]} 17. a5 {[%clk 0:02:06]}  b6 {[%clk 0:02:25]} 18. Nd4 {[%clk 0:02:03]}  bxa5 {[%clk 0:02:20]} 19. Nxb5 {[%clk 0:01:57]}  Rb7 {[%clk 0:02:18]} 20. Rxa5 {[%clk 0:01:57]}  Rab8 {[%clk 0:02:15]} 21. Nd6 {[%clk 0:01:47]}  Rb6 {[%clk 0:02:13]} 22. Ra6 {[%clk 0:01:42]}  Bxe2 {[%clk 0:02:08]} 23. Bf1 {[%clk 0:01:39]}  Bxf1 {[%clk 0:02:04]} 24. Kxf1 {[%clk 0:01:38]}  Ne5 {[%clk 0:02:00]} 25. Ra8 {[%clk 0:01:27]}  g5 {[%clk 0:01:47]} 26. Rxb8+ {[%clk 0:01:26]}  Rxb8 {[%clk 0:01:47]} 27. d4 {[%clk 0:01:21]}  N5c6 {[%clk 0:01:39]} 28. Nf3 {[%clk 0:01:22]}  g4 {[%clk 0:01:37]} 29. Ne5 {[%clk 0:01:20]}  Nxe5 {[%clk 0:01:21]} 30. dxe5 {[%clk 0:01:20]}  Nc6 {[%clk 0:01:22]} 31. b5 {[%clk 0:01:11]}  Nxe5 {[%clk 0:01:21]} 32. Ke2 {[%clk 0:00:51]}  Kg7 {[%clk 0:01:11]} 33. Ra6 {[%clk 0:00:44]}  Kf6 {[%clk 0:01:07]} 34. Ke3 {[%clk 0:00:40]}  Ke7 {[%clk 0:01:00]} 35. Kd4 {[%clk 0:00:31]}  f6 {[%clk 0:01:00]} 36. Kc5 {[%clk 0:00:22]}  Nd7+ {[%clk 0:00:59]} 37. Kb4 {[%clk 0:00:20]}  h5 {[%clk 0:00:49]} 38. Ka5 {[%clk 0:00:16]}  Nc5 {[%clk 0:00:48]} 39. Rc6 {[%clk 0:00:16]}  Nb3+ {[%clk 0:00:45]} 40. Kb4 {[%clk 0:00:16]}  Nd4 {[%clk 0:00:45]} 41. Nc8+ {[%clk 0:00:10]}  Kd7 {[%clk 0:00:40]} 42. Na7 {[%clk 0:00:06]}  Nxc6+ {[%clk 0:00:39]} 43. Nxc6 {[%clk 0:00:07]}  Rb6 {[%clk 0:00:38]} 44. Kc5 {[%clk 0:00:07]}  Rxc6+ {[%clk 0:00:35]} 45. bxc6+ {[%clk 0:00:06]}  Kc7 {[%clk 0:00:36]} 0-1


[Site "https://www.chess.com"]

[Event "Titled Tuesday Blitz May 2 Early 2023"]
[White "Arat, Ufuk Sezen"]
[Black "Pandey Srishti"]
[WhiteFideId "6309089"]
[BlackFideId "35093290"]
[WhiteElo "2289"]
[BlackElo "2083"]
[Result "1-0"]
[Round "02"]
[TimeControl "180+2"]
[Date "2023.05.02"]
[WhiteClock "0:00:31"]
[BlackClock "0:00:01"]

1. e4 {[%clk 0:02:57]}  e5 {[%clk 0:02:56]} 2. Nf3 {[%clk 0:02:56]}  Nc6 {[%clk 0:02:55]} 3. Bb5 {[%clk 0:02:57]}  a6 {[%clk 0:02:54]} 4. Ba4 {[%clk 0:02:56]}  Nf6 {[%clk 0:02:48]} 5. O-O {[%clk 0:02:56]}  b5 {[%clk 0:02:46]} 6. Bb3 {[%clk 0:02:55]}  Bc5 {[%clk 0:02:20]} 7. c3 {[%clk 0:02:47]}  d6 {[%clk 0:02:17]} 8. d4 {[%clk 0:02:45]}  Bb6 {[%clk 0:02:16]} 9. h3 {[%clk 0:02:45]}  O-O {[%clk 0:02:13]} 10. a4 {[%clk 0:02:44]}  Rb8 {[%clk 0:02:10]} 11. Be3 {[%clk 0:02:27]}  Re8 {[%clk 0:01:59]} 12. axb5 {[%clk 0:02:15]}  axb5 {[%clk 0:01:56]} 13. Ng5 {[%clk 0:02:14]}  Rf8 {[%clk 0:01:53]} 14. Nf3 {[%clk 0:02:10]}  Re8 {[%clk 0:01:49]} 15. Nbd2 {[%clk 0:02:06]}  exd4 {[%clk 0:01:46]} 16. cxd4 {[%clk 0:02:04]}  h6 {[%clk 0:01:46]} 17. Rc1 {[%clk 0:01:59]}  Nb4 {[%clk 0:01:42]} 18. e5 {[%clk 0:01:49]}  Nfd5 {[%clk 0:01:34]} 19. Nb1 {[%clk 0:01:38]}  Be6 {[%clk 0:01:24]} 20. Nc3 {[%clk 0:01:36]}  Nxe3 {[%clk 0:01:18]} 21. fxe3 {[%clk 0:01:36]}  Bxb3 {[%clk 0:01:14]} 22. Qxb3 {[%clk 0:01:36]}  c5 {[%clk 0:01:15]} 23. Ne4 {[%clk 0:01:32]}  dxe5 {[%clk 0:00:59]} 24. dxc5 {[%clk 0:01:31]}  Ba5 {[%clk 0:00:59]} 25. Nd6 {[%clk 0:01:25]}  Re7 {[%clk 0:00:57]} 26. Nd2 {[%clk 0:01:16]}  Qc7 {[%clk 0:00:48]} 27. N2e4 {[%clk 0:01:11]}  Rf8 {[%clk 0:00:30]} 28. Nxb5 {[%clk 0:01:07]}  Qc6 {[%clk 0:00:23]} 29. Nbd6 {[%clk 0:01:05]}  Nd5 {[%clk 0:00:22]} 30. Rcd1 {[%clk 0:01:04]}  Nc7 {[%clk 0:00:19]} 31. Qd3 {[%clk 0:00:44]}  Ne6 {[%clk 0:00:16]} 32. Qc4 {[%clk 0:00:34]}  Rc7 {[%clk 0:00:15]} 33. b4 {[%clk 0:00:34]}  Bxb4 {[%clk 0:00:13]} 34. Qxb4 {[%clk 0:00:34]}  Nxc5 {[%clk 0:00:10]} 35. Rc1 {[%clk 0:00:32]}  Nxe4 {[%clk 0:00:01]} 36. Rxc6 {[%clk 0:00:31]}  Nxd6 {[%clk 0:00:01]} 37. Rxc7 {[%clk 0:00:31]} 1-0


[Site "https://www.chess.com"]

[Event "Titled Tuesday Blitz May 2 Early 2023"]
[White "Ibadov, Dashgyn"]
[Black "Makhmudov, Shukhrat"]
[WhiteFideId "24107514"]
[BlackFideId "14200775"]
[WhiteElo "2208"]
[BlackElo "2135"]
[Result "1-0"]
[Round "02"]
[TimeControl "180+2"]
[Date "2023.05.02"]
[WhiteClock "0:00:19"]
[BlackClock "0:00:30"]

1. e4 {[%clk 0:02:59]}  e5 {[%clk 0:02:59]} 2. Nf3 {[%clk 0:02:59]}  Nc6 {[%clk 0:02:59]} 3. d4 {[%clk 0:03:00]}  exd4 {[%clk 0:02:59]} 4. Nxd4 {[%clk 0:03:00]}  Nf6 {[%clk 0:02:59]} 5. Nxc6 {[%clk 0:03:00]}  bxc6 {[%clk 0:03:00]} 6. e5 {[%clk 0:03:01]}  Qe7 {[%clk 0:03:00]} 7. Qe2 {[%clk 0:03:02]}  Nd5 {[%clk 0:03:01]} 8. c4 {[%clk 0:03:02]}  Ba6 {[%clk 0:03:01]} 9. b3 {[%clk 0:03:02]}  O-O-O {[%clk 0:03:01]} 10. g3 {[%clk 0:03:02]}  Re8 {[%clk 0:03:01]} 11. Bb2 {[%clk 0:03:02]}  f6 {[%clk 0:03:02]} 12. Bg2 {[%clk 0:02:58]}  fxe5 {[%clk 0:03:01]} 13. O-O {[%clk 0:02:56]}  e4 {[%clk 0:03:01]} 14. Qd2 {[%clk 0:02:47]}  e3 {[%clk 0:03:00]} 15. Qa5 {[%clk 0:02:47]}  exf2+ {[%clk 0:03:00]} 16. Kh1 {[%clk 0:02:35]}  Nb4 {[%clk 0:02:18]} 17. a3 {[%clk 0:02:26]}  Qe2 {[%clk 0:02:14]} 18. axb4 {[%clk 0:02:21]}  Bb7 {[%clk 0:02:13]} 19. Qxa7 {[%clk 0:01:07]}  Qxf1+ {[%clk 0:01:45]} 20. Bxf1 {[%clk 0:01:07]}  c5+ {[%clk 0:01:44]} 21. Qxb7+ {[%clk 0:01:06]}  Kxb7 {[%clk 0:01:44]} 22. Nd2 {[%clk 0:00:58]}  Re1 {[%clk 0:01:29]} 23. Kg2 {[%clk 0:00:54]}  cxb4 {[%clk 0:01:23]} 24. Kxf2 {[%clk 0:00:54]}  Rxa1 {[%clk 0:01:22]} 25. Bxa1 {[%clk 0:00:54]}  Bc5+ {[%clk 0:01:22]} 26. Ke2 {[%clk 0:00:54]}  Re8+ {[%clk 0:01:22]} 27. Kd1 {[%clk 0:00:50]}  g6 {[%clk 0:01:17]} 28. Bg2+ {[%clk 0:00:47]}  c6 {[%clk 0:01:17]} 29. Ne4 {[%clk 0:00:46]}  Be7 {[%clk 0:01:11]} 30. Bf6 {[%clk 0:00:46]}  Bf8 {[%clk 0:01:02]} 31. Kc2 {[%clk 0:00:45]}  d5 {[%clk 0:01:00]} 32. cxd5 {[%clk 0:00:46]}  cxd5 {[%clk 0:01:01]} 33. Nd2 {[%clk 0:00:47]}  Kc6 {[%clk 0:00:58]} 34. Bf3 {[%clk 0:00:40]}  Bh6 {[%clk 0:00:54]} 35. Nc4 {[%clk 0:00:33]}  Rf8 {[%clk 0:00:52]} 36. Ne5+ {[%clk 0:00:33]}  Kd6 {[%clk 0:00:49]} 37. Ng4 {[%clk 0:00:33]}  Bg7 {[%clk 0:00:39]} 38. Bxg7 {[%clk 0:00:33]}  Rxf3 {[%clk 0:00:39]} 39. Be5+ {[%clk 0:00:25]}  Ke6 {[%clk 0:00:39]} 40. Bd4 {[%clk 0:00:20]}  h5 {[%clk 0:00:36]} 41. Nf2 {[%clk 0:00:20]}  Rf7 {[%clk 0:00:33]} 42. Nd3 {[%clk 0:00:20]}  Rc7+ {[%clk 0:00:30]} 43. Kd2 {[%clk 0:00:20]}  Rb7 {[%clk 0:00:29]} 44. Nc5+ {[%clk 0:00:19]}  Kf5 {[%clk 0:00:29]} 45. Nxb7 {[%clk 0:00:20]}  Kg4 {[%clk 0:00:29]} 46. Ke3 {[%clk 0:00:17]}  Kh3 {[%clk 0:00:30]} 47. Bc5 {[%clk 0:00:17]}  Kxh2 {[%clk 0:00:29]} 48. Kf2 {[%clk 0:00:18]}  g5 {[%clk 0:00:29]} 49. Bxb4 {[%clk 0:00:18]}  h4 {[%clk 0:00:29]} 50. gxh4 {[%clk 0:00:19]}  g4 {[%clk 0:00:29]} 51. Bd6+ {[%clk 0:00:19]}  Kh3 {[%clk 0:00:30]} 52. h5 {[%clk 0:00:18]}  d4 {[%clk 0:00:30]} 53. h6 {[%clk 0:00:18]}  d3 {[%clk 0:00:31]} 54. h7 {[%clk 0:00:19]}  g3+ {[%clk 0:00:31]} 55. Bxg3 {[%clk 0:00:19]}  d2 {[%clk 0:00:30]} 56. h8=Q+ {[%clk 0:00:19]} 1-0


[Site "https://www.chess.com"]

[Event "Titled Tuesday Blitz May 2 Early 2023"]
[White "Tsyhanchuk, Stanislav"]
[Black "Karas, Marek"]
[WhiteFideId "13505130"]
[BlackFideId "14928558"]
[WhiteElo "2173"]
[BlackElo "2233"]
[Result "0-1"]
[Round "02"]
[TimeControl "180+2"]
[Date "2023.05.02"]
[WhiteClock "0:00:52"]
[BlackClock "0:01:01"]

1. e4 {[%clk 0:03:00]}  e6 {[%clk 0:02:59]} 2. d4 {[%clk 0:02:58]}  d5 {[%clk 0:02:59]} 3. Nc3 {[%clk 0:02:58]}  Nf6 {[%clk 0:02:59]} 4. e5 {[%clk 0:02:55]}  Nfd7 {[%clk 0:03:00]} 5. f4 {[%clk 0:02:47]}  c5 {[%clk 0:03:00]} 6. Nf3 {[%clk 0:02:46]}  Nc6 {[%clk 0:03:00]} 7. Be3 {[%clk 0:02:45]}  Be7 {[%clk 0:03:01]} 8. Bd3 {[%clk 0:02:42]}  a6 {[%clk 0:02:56]} 9. O-O {[%clk 0:02:36]}  b5 {[%clk 0:02:54]} 10. f5 {[%clk 0:02:20]}  cxd4 {[%clk 0:02:50]} 11. fxe6 {[%clk 0:02:18]}  dxe3 {[%clk 0:02:42]} 12. exf7+ {[%clk 0:02:05]}  Kf8 {[%clk 0:02:40]} 13. Nxd5 {[%clk 0:01:56]}  Nc5 {[%clk 0:02:35]} 14. Nxe7 {[%clk 0:01:55]}  Qxe7 {[%clk 0:02:25]} 15. b4 {[%clk 0:01:49]}  Nxd3 {[%clk 0:02:23]} 16. Qxd3 {[%clk 0:01:50]}  Nxb4 {[%clk 0:02:19]} 17. Qxe3 {[%clk 0:01:42]}  Nxc2 {[%clk 0:02:15]} 18. Qe4 {[%clk 0:01:41]}  Nxa1 {[%clk 0:02:06]} 19. Qxa8 {[%clk 0:01:40]}  Qc5+ {[%clk 0:02:06]} 20. Kh1 {[%clk 0:01:39]}  Nc2 {[%clk 0:02:03]} 21. Ng5 {[%clk 0:01:33]}  Nd4 {[%clk 0:01:53]} 22. e6 {[%clk 0:01:25]}  h6 {[%clk 0:01:46]} 23. Ne4 {[%clk 0:01:20]}  Qc6 {[%clk 0:01:38]} 24. e7+ {[%clk 0:01:15]}  Kxe7 {[%clk 0:01:35]} 25. Qa7+ {[%clk 0:01:15]}  Bb7 {[%clk 0:01:28]} 26. Qc5+ {[%clk 0:01:12]}  Qxc5 {[%clk 0:01:28]} 27. Nxc5 {[%clk 0:01:12]}  Bc8 {[%clk 0:01:20]} 28. Rd1 {[%clk 0:01:07]}  Ne6 {[%clk 0:01:15]} 29. Ne4 {[%clk 0:01:04]}  Kxf7 {[%clk 0:01:14]} 30. Rc1 {[%clk 0:01:00]}  Ke7 {[%clk 0:01:10]} 31. Rc6 {[%clk 0:00:58]}  Rd8 {[%clk 0:01:04]} 32. h3 {[%clk 0:00:55]}  Bb7 {[%clk 0:01:02]} 33. Rxe6+ {[%clk 0:00:55]}  Kxe6 {[%clk 0:01:01]} 34. Nc5+ {[%clk 0:00:55]}  Kd5 {[%clk 0:01:02]} 35. Nxb7 {[%clk 0:00:56]}  Re8 {[%clk 0:01:00]} 36. Na5 {[%clk 0:00:54]}  Re1+ {[%clk 0:01:00]} 37. Kh2 {[%clk 0:00:53]}  Re2 {[%clk 0:01:01]} 38. a3 {[%clk 0:00:52]}  Re3 {[%clk 0:01:01]} 0-1


[Site "https://www.chess.com"]

[Event "Titled Tuesday Blitz May 2 Early 2023"]
[White "Begunov, Konstantin"]
[Black "Vasques, Antonio Pedro Freixial"]
[WhiteFideId "4118510"]
[BlackFideId "1908332"]
[WhiteElo "2087"]
[BlackElo "2212"]
[Result "1-0"]
[Round "02"]
[TimeControl "180+2"]
[Date "2023.05.02"]
[WhiteClock "0:00:00"]
[BlackClock "0:00:01"]

1. d4 {[%clk 0:00:01]}  Nf6 {[%clk 0:00:01]} 2. c4 {[%clk 0:00:01]}  e6 {[%clk 0:00:01]} 3. Nf3 {[%clk 0:00:01]}  d5 {[%clk 0:00:01]} 4. Nc3 {[%clk 0:00:01]}  dxc4 {[%clk 0:00:01]} 5. e4 {[%clk 0:00:01]}  a6 {[%clk 0:00:01]} 6. Bxc4 {[%clk 0:00:01]}  b5 {[%clk 0:00:01]} 7. Bd3 {[%clk 0:00:01]}  Bb7 {[%clk 0:00:01]} 8. Qe2 {[%clk 0:00:01]}  c5 {[%clk 0:00:01]} 9. e5 {[%clk 0:00:01]}  cxd4 {[%clk 0:00:01]} 10. Nxb5 {[%clk 0:00:01]}  axb5 {[%clk 0:00:01]} 11. exf6 {[%clk 0:00:01]}  Bb4+ {[%clk 0:00:01]} 12. Kf1 {[%clk 0:00:00]}  Qxf6 {[%clk 0:00:01]} 13. Bxb5+ {[%clk 0:00:00]}  Ke7 {[%clk 0:00:01]} 14. Bg5 {[%clk 0:00:00]} 1-0


[Site "https://www.chess.com"]

[Event "Titled Tuesday Blitz May 2 Early 2023"]
[White "Urbina Perez, Juan Antonio"]
[Black "Napoli, Nicolo"]
[WhiteFideId "2217368"]
[BlackFideId "813702"]
[WhiteElo "2197"]
[BlackElo "2308"]
[Result "0-1"]
[Round "02"]
[TimeControl "180+2"]
[Date "2023.05.02"]
[WhiteClock "0:02:24"]
[BlackClock "0:02:28"]

1. e4 {[%clk 0:02:59]}  c6 {[%clk 0:02:59]} 2. Nf3 {[%clk 0:02:58]}  d5 {[%clk 0:03:00]} 3. d3 {[%clk 0:02:58]}  Bg4 {[%clk 0:02:58]} 4. h3 {[%clk 0:02:57]}  Bxf3 {[%clk 0:02:57]} 5. Qxf3 {[%clk 0:02:57]}  Nf6 {[%clk 0:02:57]} 6. e5 {[%clk 0:02:56]}  Nfd7 {[%clk 0:02:57]} 7. d4 {[%clk 0:02:55]}  e6 {[%clk 0:02:57]} 8. Bd3 {[%clk 0:02:50]}  c5 {[%clk 0:02:56]} 9. c3 {[%clk 0:02:50]}  Nc6 {[%clk 0:02:55]} 10. a3 {[%clk 0:02:49]}  cxd4 {[%clk 0:02:49]} 11. cxd4 {[%clk 0:02:50]}  Qb6 {[%clk 0:02:48]} 12. Qg4 {[%clk 0:02:25]}  Qxd4 {[%clk 0:02:35]} 13. Qxd4 {[%clk 0:02:24]}  Nxd4 {[%clk 0:02:34]} 14. f4 {[%clk 0:02:25]}  Nb3 {[%clk 0:02:29]} 15. Ra2 {[%clk 0:02:24]}  Nxc1 {[%clk 0:02:28]} 0-1


[Site "https://www.chess.com"]

[Event "Titled Tuesday Blitz May 2 Early 2023"]
[White "Biriukov, Ilja"]
[Black "Lorenzo De La Riva, Lazaro"]
[WhiteFideId "4113373"]
[BlackFideId "2268809"]
[WhiteElo "2426"]
[BlackElo "2294"]
[Result "0-1"]
[Round "02"]
[TimeControl "180+2"]
[Date "2023.05.02"]
[WhiteClock "0:00:03"]
[BlackClock "0:00:14"]

1. c4 {[%clk 0:02:55]}  Nf6 {[%clk 0:02:58]} 2. Nc3 {[%clk 0:02:55]}  d5 {[%clk 0:02:58]} 3. e3 {[%clk 0:02:53]}  e6 {[%clk 0:02:56]} 4. Nf3 {[%clk 0:02:52]}  Bd6 {[%clk 0:02:53]} 5. b3 {[%clk 0:02:48]}  O-O {[%clk 0:02:51]} 6. Bb2 {[%clk 0:02:47]}  b6 {[%clk 0:02:51]} 7. Be2 {[%clk 0:02:47]}  Bb7 {[%clk 0:02:49]} 8. O-O {[%clk 0:02:47]}  Nbd7 {[%clk 0:02:48]} 9. d4 {[%clk 0:02:43]}  a6 {[%clk 0:02:46]} 10. Rc1 {[%clk 0:02:40]}  Qe7 {[%clk 0:02:42]} 11. Qc2 {[%clk 0:02:35]}  Rfe8 {[%clk 0:02:23]} 12. Rfd1 {[%clk 0:02:32]}  dxc4 {[%clk 0:02:15]} 13. bxc4 {[%clk 0:02:31]}  c5 {[%clk 0:02:11]} 14. d5 {[%clk 0:02:23]}  exd5 {[%clk 0:01:46]} 15. Nxd5 {[%clk 0:02:19]}  Nxd5 {[%clk 0:01:40]} 16. cxd5 {[%clk 0:02:18]}  Nf6 {[%clk 0:01:37]} 17. Qc3 {[%clk 0:01:57]}  b5 {[%clk 0:01:38]} 18. Rd2 {[%clk 0:01:32]}  Qf8 {[%clk 0:01:28]} 19. Rcd1 {[%clk 0:01:30]}  Ne4 {[%clk 0:01:27]} 20. Qc2 {[%clk 0:01:26]}  Nxd2 {[%clk 0:01:26]} 21. Rxd2 {[%clk 0:01:25]}  Rad8 {[%clk 0:01:23]} 22. Bd3 {[%clk 0:01:24]}  h6 {[%clk 0:01:13]} 23. e4 {[%clk 0:01:23]}  f6 {[%clk 0:01:03]} 24. Nh4 {[%clk 0:01:19]}  Bc8 {[%clk 0:00:53]} 25. g3 {[%clk 0:00:58]}  Qf7 {[%clk 0:00:40]} 26. f4 {[%clk 0:00:53]}  g5 {[%clk 0:00:38]} 27. Ng2 {[%clk 0:00:44]}  Bh3 {[%clk 0:00:34]} 28. Re2 {[%clk 0:00:33]}  c4 {[%clk 0:00:32]} 29. Bxc4 {[%clk 0:00:27]}  bxc4 {[%clk 0:00:33]} 30. Qxc4 {[%clk 0:00:27]}  Rc8 {[%clk 0:00:31]} 31. Qb3 {[%clk 0:00:26]}  Bc5+ {[%clk 0:00:31]} 32. Kh1 {[%clk 0:00:23]}  Rb8 {[%clk 0:00:24]} 33. Qc2 {[%clk 0:00:20]}  Rec8 {[%clk 0:00:24]} 34. Qc3 {[%clk 0:00:11]}  Be7 {[%clk 0:00:18]} 35. Qd4 {[%clk 0:00:07]}  Rb4 {[%clk 0:00:15]} 36. Qd2 {[%clk 0:00:06]}  Rcb8 {[%clk 0:00:14]} 37. Bc3 {[%clk 0:00:03]}  Rb1+ {[%clk 0:00:14]} 0-1


[Site "https://www.chess.com"]

[Event "Titled Tuesday Blitz May 2 Early 2023"]
[White "Khamdamova, Afruza"]
[Black "De Souza, Cristiano Gomes"]
[WhiteFideId "14210444"]
[BlackFideId "2151758"]
[WhiteElo "2210"]
[BlackElo "2068"]
[Result "1-0"]
[Round "02"]
[TimeControl "180+2"]
[Date "2023.05.02"]
[WhiteClock "0:00:00"]
[BlackClock "0:00:00"]

1. e4 {[%clk 0:00:01]}  c5 {[%clk 0:00:01]} 2. Nf3 {[%clk 0:00:01]}  d6 {[%clk 0:00:01]} 3. d4 {[%clk 0:00:01]}  cxd4 {[%clk 0:00:01]} 4. Nxd4 {[%clk 0:00:01]}  Nf6 {[%clk 0:00:01]} 5. Nc3 {[%clk 0:00:01]}  g6 {[%clk 0:00:01]} 6. Be3 {[%clk 0:00:01]}  Bg7 {[%clk 0:00:01]} 7. f3 {[%clk 0:00:01]}  O-O {[%clk 0:00:01]} 8. Qd2 {[%clk 0:00:01]}  Nc6 {[%clk 0:00:01]} 9. Bc4 {[%clk 0:00:01]}  Bd7 {[%clk 0:00:01]} 10. h4 {[%clk 0:00:01]}  Rc8 {[%clk 0:00:01]} 11. Bb3 {[%clk 0:00:01]}  h5 {[%clk 0:00:01]} 12. O-O-O {[%clk 0:00:01]}  Ne5 {[%clk 0:00:01]} 13. Bh6 {[%clk 0:00:01]}  Qa5 {[%clk 0:00:01]} 14. Bxg7 {[%clk 0:00:01]}  Kxg7 {[%clk 0:00:01]} 15. Kb1 {[%clk 0:00:01]}  Rfe8 {[%clk 0:00:01]} 16. g4 {[%clk 0:00:01]}  Nc4 {[%clk 0:00:01]} 17. Bxc4 {[%clk 0:00:01]}  Rxc4 {[%clk 0:00:01]} 18. gxh5 {[%clk 0:00:01]}  Nxh5 {[%clk 0:00:01]} 19. Rhg1 {[%clk 0:00:01]}  Rec8 {[%clk 0:00:01]} 20. Rg5 {[%clk 0:00:01]}  Qb4 {[%clk 0:00:01]} 21. Rxh5 {[%clk 0:00:01]}  Rxd4 {[%clk 0:00:01]} 22. Qh6+ {[%clk 0:00:00]}  Kf6 {[%clk 0:00:00]} 23. Nd5+ {[%clk 0:00:00]}  Rxd5 {[%clk 0:00:00]} 24. Rhxd5 {[%clk 0:00:00]}  Be6 {[%clk 0:00:00]} 25. e5+ {[%clk 0:00:00]}  dxe5 {[%clk 0:00:00]} 26. Qg5+ {[%clk 0:00:00]}  Kg7 {[%clk 0:00:00]} 27. Qxe5+ {[%clk 0:00:00]}  Kh7 {[%clk 0:00:00]} 28. h5 {[%clk 0:00:00]}  Bxd5 {[%clk 0:00:00]} 29. hxg6+ {[%clk 0:00:00]}  Kxg6 {[%clk 0:00:00]} 30. Rg1+ {[%clk 0:00:00]}  Kh6 {[%clk 0:00:00]} 31. Qg5+ {[%clk 0:00:00]}  Kh7 {[%clk 0:00:00]} 32. Qg7# {[%clk 0:00:00]} 1-0


[Site "https://www.chess.com"]

[Event "Titled Tuesday Blitz May 2 Early 2023"]
[White "Srinath, Rao S.V."]
[Black "Sanhueza, Cristian"]
[WhiteFideId "5028876"]
[BlackFideId "116815"]
[WhiteElo "2196"]
[BlackElo "2219"]
[Result "1-0"]
[Round "02"]
[TimeControl "180+2"]
[Date "2023.05.02"]
[WhiteClock "0:01:41"]
[BlackClock "0:00:26"]

1. c4 {[%clk 0:03:00]}  Nf6 {[%clk 0:02:59]} 2. Nc3 {[%clk 0:03:01]}  g6 {[%clk 0:03:00]} 3. e4 {[%clk 0:03:01]}  d6 {[%clk 0:03:00]} 4. g3 {[%clk 0:03:01]}  Bg7 {[%clk 0:03:00]} 5. Bg2 {[%clk 0:03:02]}  O-O {[%clk 0:03:01]} 6. Nge2 {[%clk 0:03:03]}  c5 {[%clk 0:03:00]} 7. h3 {[%clk 0:03:03]}  Nc6 {[%clk 0:03:00]} 8. Rb1 {[%clk 0:03:02]}  a6 {[%clk 0:02:55]} 9. a3 {[%clk 0:03:00]}  a5 {[%clk 0:02:34]} 10. O-O {[%clk 0:02:59]}  Ne8 {[%clk 0:02:30]} 11. d3 {[%clk 0:02:58]}  Nc7 {[%clk 0:02:30]} 12. Bd2 {[%clk 0:02:56]}  Ne6 {[%clk 0:02:28]} 13. Nd5 {[%clk 0:02:55]}  Ned4 {[%clk 0:02:27]} 14. b4 {[%clk 0:02:53]}  axb4 {[%clk 0:02:22]} 15. Nxd4 {[%clk 0:02:50]}  Bxd4 {[%clk 0:01:55]} 16. axb4 {[%clk 0:02:48]}  e6 {[%clk 0:01:54]} 17. Ne3 {[%clk 0:02:36]}  cxb4 {[%clk 0:01:52]} 18. Nc2 {[%clk 0:02:34]}  Bc3 {[%clk 0:01:47]} 19. Nxb4 {[%clk 0:02:33]}  Bxd2 {[%clk 0:01:46]} 20. Qxd2 {[%clk 0:02:33]}  Qa5 {[%clk 0:01:43]} 21. Kh2 {[%clk 0:02:20]}  Bd7 {[%clk 0:01:40]} 22. Qb2 {[%clk 0:02:14]}  Qc5 {[%clk 0:00:58]} 23. Nc2 {[%clk 0:02:07]}  Ra7 {[%clk 0:00:52]} 24. Qc3 {[%clk 0:02:06]}  e5 {[%clk 0:00:52]} 25. Rb5 {[%clk 0:02:05]}  Nd4 {[%clk 0:00:36]} 26. Rxc5 {[%clk 0:02:03]}  dxc5 {[%clk 0:00:37]} 27. Nxd4 {[%clk 0:02:02]}  exd4 {[%clk 0:00:36]} 28. Qd2 {[%clk 0:02:00]}  Rfa8 {[%clk 0:00:37]} 29. Rb1 {[%clk 0:01:57]}  Bc6 {[%clk 0:00:36]} 30. Qg5 {[%clk 0:01:55]}  Ra3 {[%clk 0:00:35]} 31. Rd1 {[%clk 0:01:48]}  R8a5 {[%clk 0:00:31]} 32. h4 {[%clk 0:01:45]}  Ra2 {[%clk 0:00:31]} 33. Rd2 {[%clk 0:01:44]}  Ra1 {[%clk 0:00:31]} 34. h5 {[%clk 0:01:43]}  Kg7 {[%clk 0:00:28]} 35. h6+ {[%clk 0:01:43]}  Kf8 {[%clk 0:00:27]} 36. Qd8+ {[%clk 0:01:42]}  Be8 {[%clk 0:00:26]} 37. Qd6+ {[%clk 0:01:41]}  Kg8 {[%clk 0:00:26]} 38. Qe7 {[%clk 0:01:41]} 1-0


[Site "https://www.chess.com"]